[Event "*** Titled Tuesday Blitz"]
[Site "Chess.com"]
[Date "2020.12.01"]
[Round "7"]
[White "GukeshDommaraju"]
[Black "Duhless"]
[Result "0-1"]
[WhiteElo "2889"]
[BlackElo "3009"]
[TimeControl "180+1"]
[EndTime "11:17:07 PST"]
[Termination "Duhless won by checkmate"]

1. d4 {[%clk 0:03:00.9]} 1... Nf6 {[%clk 0:02:59.5]} 2. Nf3 {[%clk 0:03:01.1]}
2... e6 {[%clk 0:02:58.6]} 3. Bf4 {[%clk 0:03:00.5]} 3... b6 {[%clk 0:02:57.4]}
4. e3 {[%clk 0:03:00.2]} 4... Bb7 {[%clk 0:02:57.8]} 5. Nbd2 {[%clk 0:03:00.5]}
5... d6 {[%clk 0:02:57.9]} 6. Bd3 {[%clk 0:02:59.4]} 6... Nbd7 {[%clk
0:02:57.7]} 7. O-O {[%clk 0:02:57.5]} 7... g6 {[%clk 0:02:57.7]} 8. h3 {[%clk
0:02:56.7]} 8... Bg7 {[%clk 0:02:57.5]} 9. c3 {[%clk 0:02:56.3]} 9... O-O {[%clk
0:02:57.4]} 10. Qe2 {[%clk 0:02:55.5]} 10... Qe7 {[%clk 0:02:55.6]} 11. Bh2
{[%clk 0:02:50.6]} 11... a5 {[%clk 0:02:54.6]} 12. e4 {[%clk 0:02:49]} 12... e5
{[%clk 0:02:52]} 13. Rfe1 {[%clk 0:02:40.2]} 13... Rfe8 {[%clk 0:02:50.7]} 14.
Rac1 {[%clk 0:02:35.7]} 14... Bh6 {[%clk 0:02:47]} 15. Bb5 {[%clk 0:02:28.4]}
15... c6 {[%clk 0:02:36.9]} 16. Bd3 {[%clk 0:02:25.8]} 16... c5 {[%clk 0:02:35]}
17. d5 {[%clk 0:02:21.6]} 17... Nh5 {[%clk 0:02:28.2]} 18. Bb5 {[%clk
0:02:20.6]} 18... Red8 {[%clk 0:02:20.3]} 19. Rcd1 {[%clk 0:02:18.8]} 19... Bxd2
{[%clk 0:02:18.2]} 20. Nxd2 {[%clk 0:02:17]} 20... Nf8 {[%clk 0:02:15.1]} 21.
Nc4 {[%clk 0:02:15.1]} 21... Qc7 {[%clk 0:02:14.5]} 22. Qf3 {[%clk 0:02:15]}
22... Ba6 {[%clk 0:02:02.8]} 23. Na3 {[%clk 0:01:59.5]} 23... Bxb5 {[%clk
0:01:54.1]} 24. Nxb5 {[%clk 0:01:59.2]} 24... Qd7 {[%clk 0:01:54.6]} 25. a4
{[%clk 0:01:59]} 25... Rab8 {[%clk 0:01:53.1]} 26. g4 {[%clk 0:01:57.4]} 26...
Ng7 {[%clk 0:01:52.5]} 27. Bg3 {[%clk 0:01:55.1]} 27... f5 {[%clk 0:01:49.1]}
28. Bh4 {[%clk 0:01:52.4]} 28... Re8 {[%clk 0:01:48.6]} 29. gxf5 {[%clk
0:01:50]} 29... gxf5 {[%clk 0:01:47.8]} 30. Bf6 {[%clk 0:01:44.1]} 30... Ng6
{[%clk 0:01:25.2]} 31. Bxg7 {[%clk 0:01:30.1]} 31... Kxg7 {[%clk 0:01:17.2]} 32.
exf5 {[%clk 0:01:28]} 32... Nf4 {[%clk 0:01:12.6]} 33. Kh2 {[%clk 0:01:27.5]}
33... Kh8 {[%clk 0:01:10.3]} 34. Rg1 {[%clk 0:01:27.4]} 34... Rbd8 {[%clk
0:01:05.8]} 35. Rg5 {[%clk 0:01:23]} 35... h6 {[%clk 0:01:04.1]} 36. Rg4 {[%clk
0:01:18.2]} 36... Qxf5 {[%clk 0:01:03.4]} 37. Rdg1 {[%clk 0:01:18.2]} 37... Re7
{[%clk 0:00:56.8]} 38. Qg3 {[%clk 0:01:13]} 38... Qf7 {[%clk 0:00:34.8]} 39. Qh4
{[%clk 0:01:07.9]} 39... Nh5 {[%clk 0:00:30.9]} 40. f4 {[%clk 0:00:36.6]} 40...
exf4 {[%clk 0:00:22.9]} 41. Rg6 {[%clk 0:00:36.5]} 41... Re2+ {[%clk 0:00:14.6]}
42. R6g2 {[%clk 0:00:32.6]} 42... Rxg2+ {[%clk 0:00:13.7]} 43. Rxg2 {[%clk
0:00:33.1]} 43... Rd7 {[%clk 0:00:05]} 44. Qg4 {[%clk 0:00:33.2]} 44... f3
{[%clk 0:00:04.3]} 45. Rf2 {[%clk 0:00:33.5]} 45... Qxd5 {[%clk 0:00:03.4]} 46.
Qxf3 {[%clk 0:00:17.7]} 46... Qe5+ {[%clk 0:00:02.5]} 47. Kh1 {[%clk 0:00:17.8]}
47... Rg7 {[%clk 0:00:03]} 48. Qf8+ {[%clk 0:00:17]} 48... Kh7 {[%clk
0:00:03.3]} 49. Rf7 {[%clk 0:00:05]} 49... Qe1+ {[%clk 0:00:02.9]} 50. Rf1
{[%clk 0:00:03.1]} 50... Ng3+ {[%clk 0:00:02.6]} 51. Kg2 {[%clk 0:00:04]} 51...
Nxf1+ {[%clk 0:00:03.5]} 52. Kf3 {[%clk 0:00:04.9]} 52... Qe3# {[%clk
0:00:03.6]} 0-1

[Event "*** Titled Tuesday Blitz"]
[Site "Chess.com"]
[Date "2020.12.01"]
[Round "7"]
[White "LPSupi"]
[Black "Gurvich_Vitaly"]
[Result "1-0"]
[WhiteElo "2891"]
[BlackElo "2604"]
[TimeControl "180+1"]
[EndTime "11:17:07 PST"]
[Termination "LPSupi won by resignation"]

1. e4 {[%clk 0:03:00.9]} 1... e5 {[%clk 0:02:58.1]} 2. Nf3 {[%clk 0:03:00.3]}
2... Nc6 {[%clk 0:02:47.3]} 3. Bc4 {[%clk 0:02:58.3]} 3... Nf6 {[%clk
0:02:45.4]} 4. d3 {[%clk 0:02:55.6]} 4... h6 {[%clk 0:02:43.6]} 5. O-O {[%clk
0:02:49.8]} 5... d6 {[%clk 0:02:26.5]} 6. c3 {[%clk 0:02:40.8]} 6... g6 {[%clk
0:02:25.1]} 7. Re1 {[%clk 0:02:37.4]} 7... Bg7 {[%clk 0:02:24.9]} 8. Nbd2 {[%clk
0:02:33.5]} 8... O-O {[%clk 0:02:22.9]} 9. Nf1 {[%clk 0:02:19.7]} 9... Be6
{[%clk 0:02:17.5]} 10. Bxe6 {[%clk 0:02:16.7]} 10... fxe6 {[%clk 0:02:18.4]} 11.
b4 {[%clk 0:02:15.2]} 11... a6 {[%clk 0:02:17]} 12. a4 {[%clk 0:02:14]} 12...
Nh5 {[%clk 0:02:16.3]} 13. Rb1 {[%clk 0:02:04.4]} 13... Qd7 {[%clk 0:02:12.1]}
14. b5 {[%clk 0:02:00]} 14... axb5 {[%clk 0:02:10.5]} 15. axb5 {[%clk
0:02:00.9]} 15... Ne7 {[%clk 0:02:09.8]} 16. d4 {[%clk 0:02:00.4]} 16... exd4
{[%clk 0:02:05.3]} 17. cxd4 {[%clk 0:01:59.6]} 17... Ra5 {[%clk 0:02:05.7]} 18.
Qd3 {[%clk 0:01:27.9]} 18... Rfa8 {[%clk 0:02:00.4]} 19. Bd2 {[%clk 0:01:26]}
19... Ra3 {[%clk 0:01:59.7]} 20. Rb3 {[%clk 0:01:25.3]} 20... Rxb3 {[%clk
0:01:58.9]} 21. Qxb3 {[%clk 0:01:25.1]} 21... c6 {[%clk 0:01:52.5]} 22. bxc6
{[%clk 0:01:15.7]} 22... bxc6 {[%clk 0:01:53.4]} 23. Rc1 {[%clk 0:01:06.6]}
23... Nf6 {[%clk 0:01:48.2]} 24. Ng3 {[%clk 0:01:04.5]} 24... Kh7 {[%clk
0:01:43.6]} 25. e5 {[%clk 0:00:58.7]} 25... dxe5 {[%clk 0:01:32.3]} 26. dxe5
{[%clk 0:00:53.8]} 26... Nfd5 {[%clk 0:01:30.2]} 27. h4 {[%clk 0:00:52]} 27...
Nf5 {[%clk 0:01:22.5]} 28. h5 {[%clk 0:00:45.7]} 28... Nxg3 {[%clk 0:01:18.6]}
29. hxg6+ {[%clk 0:00:45.6]} 29... Kxg6 {[%clk 0:01:19]} 30. fxg3 {[%clk
0:00:46.2]} 30... Kh7 {[%clk 0:01:18.5]} 31. Qc2+ {[%clk 0:00:46.1]} 31... Kh8
{[%clk 0:01:18.1]} 32. g4 {[%clk 0:00:34.4]} 32... Rc8 {[%clk 0:01:15.4]} 33. g5
{[%clk 0:00:33.7]} 33... hxg5 {[%clk 0:01:09.6]} 34. Kf2 {[%clk 0:00:31.9]}
34... Qa7+ {[%clk 0:01:04.1]} 35. Kg3 {[%clk 0:00:31.9]} 35... Kg8 {[%clk
0:01:02.1]} 36. Rh1 {[%clk 0:00:30.6]} 36... Ne3 {[%clk 0:00:50.1]} 37. Qg6
{[%clk 0:00:20.9]} 37... Nf5+ {[%clk 0:00:49.5]} 38. Kg4 {[%clk 0:00:18.6]}
38... Qa4+ {[%clk 0:00:44.6]} 39. Kxg5 {[%clk 0:00:17]} 39... Qc4 {[%clk
0:00:35.9]} 40. g4 {[%clk 0:00:16]} 40... Ng3 {[%clk 0:00:33.4]} 41. Qh7+ {[%clk
0:00:15.3]} 41... Kf8 {[%clk 0:00:33]} 42. Re1 {[%clk 0:00:12.4]} 42... Rd8
{[%clk 0:00:20.7]} 43. Kh4 {[%clk 0:00:12.4]} 43... Nf1 {[%clk 0:00:20.4]} 44.
Bh6 {[%clk 0:00:09.7]} 44... Rd7 {[%clk 0:00:16.6]} 45. Qh8+ {[%clk 0:00:09.5]}
45... Ke7 {[%clk 0:00:16.6]} 46. Qxg7+ {[%clk 0:00:09.8]} 46... Kd8 {[%clk
0:00:17.3]} 47. Qf8+ {[%clk 0:00:10.1]} 47... Kc7 {[%clk 0:00:17.6]} 48. Qf4
{[%clk 0:00:10.4]} 48... Qd3 {[%clk 0:00:16.8]} 49. Kh3 {[%clk 0:00:08.6]} 49...
Nd2 {[%clk 0:00:12.4]} 50. Kg3 {[%clk 0:00:03.9]} 50... Nb3 {[%clk 0:00:08.9]}
51. Bf8 {[%clk 0:00:03.2]} 51... c5 {[%clk 0:00:08.3]} 52. Bd6+ {[%clk
0:00:04.1]} 52... Kc8 {[%clk 0:00:07]} 53. Qf8+ {[%clk 0:00:03.9]} 53... Kb7
{[%clk 0:00:07.1]} 54. Qb8+ {[%clk 0:00:04.2]} 54... Ka6 {[%clk 0:00:06.3]} 55.
Qc8+ {[%clk 0:00:04]} 55... Rb7 {[%clk 0:00:06.1]} 56. Qc6+ {[%clk 0:00:04.1]}
56... Rb6 {[%clk 0:00:06.3]} 57. Qa8+ {[%clk 0:00:04.7]} 57... Kb5 {[%clk
0:00:06.5]} 58. Qe4 {[%clk 0:00:05.6]} 58... Qd2 {[%clk 0:00:05.7]} 59. Nxd2
{[%clk 0:00:04.6]} 1-0

[Event "*** Titled Tuesday Blitz"]
[Site "Chess.com"]
[Date "2020.12.01"]
[Round "7"]
[White "FrostNova"]
[Black "dropstoneDP"]
[Result "1-0"]
[WhiteElo "3017"]
[BlackElo "2914"]
[TimeControl "180+1"]
[EndTime "11:17:14 PST"]
[Termination "FrostNova won by checkmate"]

1. e4 {[%clk 0:03:00.9]} 1... e5 {[%clk 0:03:00.1]} 2. Nf3 {[%clk 0:03:00.3]}
2... Nf6 {[%clk 0:03:00.4]} 3. Nxe5 {[%clk 0:02:58.2]} 3... d6 {[%clk
0:03:00.7]} 4. Nf3 {[%clk 0:02:56]} 4... Nxe4 {[%clk 0:03:00.9]} 5. c4 {[%clk
0:02:56.6]} 5... Nc6 {[%clk 0:02:59.4]} 6. d4 {[%clk 0:02:53]} 6... d5 {[%clk
0:02:58.6]} 7. Nc3 {[%clk 0:02:51.1]} 7... Bb4 {[%clk 0:02:56.9]} 8. Qc2 {[%clk
0:02:41.3]} 8... Bg4 {[%clk 0:02:55.3]} 9. Be3 {[%clk 0:02:37.7]} 9... O-O
{[%clk 0:02:09.3]} 10. a3 {[%clk 0:02:35.5]} 10... Bxc3+ {[%clk 0:02:06.4]} 11.
bxc3 {[%clk 0:02:35.3]} 11... Re8 {[%clk 0:01:45.3]} 12. Be2 {[%clk 0:02:29.8]}
12... dxc4 {[%clk 0:01:43.8]} 13. Bxc4 {[%clk 0:02:27.6]} 13... Qf6 {[%clk
0:01:23.2]} 14. Be2 {[%clk 0:02:21.6]} 14... Qg6 {[%clk 0:01:10.2]} 15. O-O
{[%clk 0:02:13.2]} 15... Ng3 {[%clk 0:01:03.1]} 16. Bd3 {[%clk 0:02:11.3]} 16...
Bf5 {[%clk 0:01:03.1]} 17. Rfd1 {[%clk 0:02:07.9]} 17... Bxd3 {[%clk 0:00:57.8]}
18. Qxd3 {[%clk 0:02:06]} 18... Nf5 {[%clk 0:00:33.9]} 19. Bf4 {[%clk
0:02:02.7]} 19... Nh4 {[%clk 0:00:34.1]} 20. Qxg6 {[%clk 0:01:51.6]} 20... Nxf3+
{[%clk 0:00:34.3]} 21. gxf3 {[%clk 0:01:52.5]} 21... hxg6 {[%clk 0:00:34.9]} 22.
Bxc7 {[%clk 0:01:52.3]} 22... Rac8 {[%clk 0:00:34.9]} 23. Bg3 {[%clk 0:01:41.3]}
23... Na5 {[%clk 0:00:34.3]} 24. Rac1 {[%clk 0:01:37.2]} 24... Nc4 {[%clk
0:00:24.9]} 25. d5 {[%clk 0:01:34.9]} 25... Red8 {[%clk 0:00:21.7]} 26. a4
{[%clk 0:01:26.1]} 26... Nb6 {[%clk 0:00:15.8]} 27. d6 {[%clk 0:01:24.7]} 27...
Nxa4 {[%clk 0:00:16]} 28. c4 {[%clk 0:01:19.9]} 28... Rc6 {[%clk 0:00:13.8]} 29.
Rd4 {[%clk 0:01:13.2]} 29... Rd7 {[%clk 0:00:10.3]} 30. Ra1 {[%clk 0:01:12]}
30... Nc3 {[%clk 0:00:08.3]} 31. Kf1 {[%clk 0:01:03.8]} 31... b5 {[%clk
0:00:08.3]} 32. Re1 {[%clk 0:00:52.7]} 32... f6 {[%clk 0:00:06.8]} 33. Re7
{[%clk 0:00:32.7]} 33... Rxe7 {[%clk 0:00:03.2]} 34. dxe7 {[%clk 0:00:33.6]}
34... Kf7 {[%clk 0:00:03.6]} 35. Rd7 {[%clk 0:00:33.8]} 35... Re6 {[%clk
0:00:02.2]} 36. Bd6 {[%clk 0:00:32.9]} 36... bxc4 {[%clk 0:00:02.2]} 37. Rd8
{[%clk 0:00:31.8]} 37... Rxe7 {[%clk 0:00:01.5]} 38. Bxe7 {[%clk 0:00:32.7]}
38... Kxe7 {[%clk 0:00:02.2]} 39. Rc8 {[%clk 0:00:32.6]} 39... Nd5 {[%clk
0:00:01.7]} 40. Rxc4 {[%clk 0:00:32.2]} 40... g5 {[%clk 0:00:02.2]} 41. Ra4
{[%clk 0:00:30.5]} 41... Kf7 {[%clk 0:00:02.5]} 42. Rxa7+ {[%clk 0:00:30.5]}
42... Kg6 {[%clk 0:00:02.5]} 43. Ra4 {[%clk 0:00:30.4]} 43... Kf5 {[%clk
0:00:02]} 44. Ra5 {[%clk 0:00:29]} 44... Ke6 {[%clk 0:00:02.3]} 45. Ke2 {[%clk
0:00:29.1]} 45... Nf4+ {[%clk 0:00:02.7]} 46. Ke3 {[%clk 0:00:28.7]} 46... Kf7
{[%clk 0:00:02.4]} 47. Ke4 {[%clk 0:00:26]} 47... Kg6 {[%clk 0:00:02.8]} 48. h4
{[%clk 0:00:25.4]} 48... Ne6 {[%clk 0:00:01.4]} 49. hxg5 {[%clk 0:00:25.2]}
49... Nxg5+ {[%clk 0:00:02.3]} 50. Ke3 {[%clk 0:00:25.3]} 50... Nf7 {[%clk
0:00:02.2]} 51. Kf4 {[%clk 0:00:24.7]} 51... Nd6 {[%clk 0:00:02.5]} 52. Ra6
{[%clk 0:00:24.5]} 52... Nf5 {[%clk 0:00:02]} 53. Ra5 {[%clk 0:00:22.9]} 53...
Ne7 {[%clk 0:00:01.6]} 54. Kg4 {[%clk 0:00:22.7]} 54... Nc6 {[%clk 0:00:01.9]}
55. Ra6 {[%clk 0:00:22.8]} 55... Ne5+ {[%clk 0:00:02.3]} 56. Kg3 {[%clk
0:00:23.5]} 56... Nf7 {[%clk 0:00:02]} 57. f4 {[%clk 0:00:23.9]} 57... Nh6
{[%clk 0:00:02.4]} 58. Ra5 {[%clk 0:00:24]} 58... Nf5+ {[%clk 0:00:02.9]} 59.
Kf3 {[%clk 0:00:23.6]} 59... Nd6 {[%clk 0:00:03.4]} 60. Rd5 {[%clk 0:00:23.1]}
60... Nf5 {[%clk 0:00:03.5]} 61. Ke4 {[%clk 0:00:23]} 61... Nh6 {[%clk
0:00:04.1]} 62. f5+ {[%clk 0:00:22.6]} 62... Kg5 {[%clk 0:00:04.7]} 63. Rd1
{[%clk 0:00:20.2]} 63... Ng4 {[%clk 0:00:02]} 64. Rg1 {[%clk 0:00:21]} 64... Kh4
{[%clk 0:00:01.8]} 65. Rh1+ {[%clk 0:00:19.9]} 65... Kg5 {[%clk 0:00:02]} 66.
f4# {[%clk 0:00:20.2]} 1-0

[Event "*** Titled Tuesday Blitz"]
[Site "Chess.com"]
[Date "2020.12.01"]
[Round "7"]
[White "DenLaz"]
[Black "nocnypako"]
[Result "1-0"]
[WhiteElo "2804"]
[BlackElo "2590"]
[TimeControl "180+1"]
[EndTime "11:17:18 PST"]
[Termination "DenLaz won on time"]

1. d4 {[%clk 0:02:57]} 1... Nf6 {[%clk 0:02:59.9]} 2. c4 {[%clk 0:02:56.8]} 2...
g6 {[%clk 0:02:59.5]} 3. Nc3 {[%clk 0:02:52.6]} 3... d5 {[%clk 0:02:59.4]} 4.
Bf4 {[%clk 0:02:47.4]} 4... Bg7 {[%clk 0:02:58.4]} 5. e3 {[%clk 0:02:47.4]} 5...
c5 {[%clk 0:02:58.3]} 6. dxc5 {[%clk 0:02:45.6]} 6... Qa5 {[%clk 0:02:57.3]} 7.
Rc1 {[%clk 0:02:45.8]} 7... dxc4 {[%clk 0:02:55.5]} 8. Bxc4 {[%clk 0:02:44.7]}
8... O-O {[%clk 0:02:55.5]} 9. Nf3 {[%clk 0:02:44.7]} 9... Qxc5 {[%clk
0:02:50.3]} 10. Bb3 {[%clk 0:02:43.7]} 10... Nc6 {[%clk 0:02:44.3]} 11. O-O
{[%clk 0:02:42.2]} 11... Qa5 {[%clk 0:02:44.2]} 12. Qe2 {[%clk 0:02:35.4]} 12...
Bg4 {[%clk 0:02:33.8]} 13. h3 {[%clk 0:02:32.8]} 13... Bxf3 {[%clk 0:02:30.2]}
14. Qxf3 {[%clk 0:02:33.7]} 14... e5 {[%clk 0:02:11.2]} 15. Bh2 {[%clk
0:02:21.5]} 15... Rfe8 {[%clk 0:02:02.6]} 16. Ne4 {[%clk 0:02:08.8]} 16... Qd8
{[%clk 0:01:30.6]} 17. Rfd1 {[%clk 0:02:01.3]} 17... Qe7 {[%clk 0:01:30.8]} 18.
Nxf6+ {[%clk 0:01:55.4]} 18... Qxf6 {[%clk 0:01:18.4]} 19. Qe4 {[%clk
0:01:45.9]} 19... Rad8 {[%clk 0:01:13.9]} 20. Bd5 {[%clk 0:01:42]} 20... Rd6
{[%clk 0:01:08.1]} 21. Bxc6 {[%clk 0:01:17.7]} 21... Rxc6 {[%clk 0:00:52.6]} 22.
Rxc6 {[%clk 0:01:15.5]} 22... Qxc6 {[%clk 0:00:53.5]} 23. Qxc6 {[%clk
0:01:15.2]} 23... bxc6 {[%clk 0:00:54.3]} 24. Rd7 {[%clk 0:01:11.3]} 24... a5
{[%clk 0:00:54.8]} 25. Ra7 {[%clk 0:01:03.8]} 25... Rd8 {[%clk 0:00:47.1]} 26.
Bg3 {[%clk 0:01:03]} 26... Rd1+ {[%clk 0:00:31.1]} 27. Kh2 {[%clk 0:01:02]}
27... Rd5 {[%clk 0:00:20.9]} 28. Bh4 {[%clk 0:00:25.1]} 28... f6 {[%clk
0:00:16.3]} 29. e4 {[%clk 0:00:20.5]} 29... Rb5 {[%clk 0:00:14.7]} 30. b3 {[%clk
0:00:20.2]} 30... g5 {[%clk 0:00:14.1]} 31. Bg3 {[%clk 0:00:20]} 31... Bf8
{[%clk 0:00:14.4]} 32. f3 {[%clk 0:00:19.9]} 32... Bc5 {[%clk 0:00:13.2]} 33.
Ra6 {[%clk 0:00:19.8]} 33... Bb6 {[%clk 0:00:12.3]} 34. h4 {[%clk 0:00:18.7]}
34... h6 {[%clk 0:00:11.6]} 35. Kh3 {[%clk 0:00:18.9]} 35... Kf7 {[%clk
0:00:09]} 36. Kg4 {[%clk 0:00:18.9]} 36... gxh4 {[%clk 0:00:06.9]} 37. Bxh4
{[%clk 0:00:19.1]} 37... Kg6 {[%clk 0:00:06.8]} 38. Ra8 {[%clk 0:00:19]} 38...
h5+ {[%clk 0:00:06.8]} 39. Kh3 {[%clk 0:00:19.1]} 39... Bc5 {[%clk 0:00:05.2]}
40. Rg8+ {[%clk 0:00:16.8]} 40... Kf7 {[%clk 0:00:05.4]} 41. Rh8 {[%clk
0:00:16.6]} 41... Kg6 {[%clk 0:00:05.7]} 42. Rc8 {[%clk 0:00:16.6]} 42... Rb6
{[%clk 0:00:05.1]} 43. Be1 {[%clk 0:00:15]} 43... Bb4 {[%clk 0:00:04.9]} 44. Bf2
{[%clk 0:00:15.2]} 44... Ra6 {[%clk 0:00:04]} 45. Rc7 {[%clk 0:00:14.3]} 45...
a4 {[%clk 0:00:03.5]} 46. Bh4 {[%clk 0:00:12.6]} 46... axb3 {[%clk 0:00:03.2]}
47. axb3 {[%clk 0:00:13.2]} 47... c5 {[%clk 0:00:03.1]} 48. Kh2 {[%clk
0:00:11.9]} 48... Re6 {[%clk 0:00:02.9]} 49. Bf2 {[%clk 0:00:11.9]} 49... f5
{[%clk 0:00:02.9]} 50. exf5+ {[%clk 0:00:10.1]} 50... Kxf5 {[%clk 0:00:03.8]}
51. Bxc5 {[%clk 0:00:10.8]} 51... Bxc5 {[%clk 0:00:04.1]} 52. Rxc5 {[%clk
0:00:11.7]} 52... Rb6 {[%clk 0:00:04.5]} 53. Rc3 {[%clk 0:00:12]} 53... Rb4
{[%clk 0:00:04.7]} 54. Kh3 {[%clk 0:00:11.2]} 54... Kg5 {[%clk 0:00:04]} 55. g3
{[%clk 0:00:11.5]} 55... Kf5 {[%clk 0:00:03.8]} 56. Kg2 {[%clk 0:00:11.6]} 56...
h4 {[%clk 0:00:02.3]} 57. gxh4 {[%clk 0:00:11.8]} 57... Rxh4 {[%clk 0:00:01.7]}
58. Rc4 {[%clk 0:00:11.7]} 58... Rh8 {[%clk 0:00:01]} 59. b4 {[%clk 0:00:11]}
59... Rd8 {[%clk 0:00:01.1]} 60. Rc2 {[%clk 0:00:06.9]} 1-0

[Event "*** Titled Tuesday Blitz"]
[Site "Chess.com"]
[Date "2020.12.01"]
[Round "7"]
[White "pastouche06"]
[Black "Stosk"]
[Result "1/2-1/2"]
[WhiteElo "2498"]
[BlackElo "2397"]
[TimeControl "180+1"]
[EndTime "11:17:20 PST"]
[Termination "Game drawn by repetition"]

1. d4 {[%clk 0:03:00.9]} 1... d5 {[%clk 0:02:59.3]} 2. c4 {[%clk 0:02:59.3]}
2... e6 {[%clk 0:02:59.3]} 3. Nc3 {[%clk 0:02:58.2]} 3... Nf6 {[%clk 0:02:59.5]}
4. cxd5 {[%clk 0:02:57.2]} 4... exd5 {[%clk 0:03:00.4]} 5. Bg5 {[%clk
0:02:56.6]} 5... Be7 {[%clk 0:03:00.7]} 6. e3 {[%clk 0:02:56.8]} 6... O-O {[%clk
0:03:00.3]} 7. Bd3 {[%clk 0:02:56.1]} 7... c6 {[%clk 0:03:00.3]} 8. Qc2 {[%clk
0:02:54.9]} 8... Nbd7 {[%clk 0:03:00.4]} 9. Nge2 {[%clk 0:02:55]} 9... Re8
{[%clk 0:02:59.8]} 10. O-O {[%clk 0:02:55]} 10... Nf8 {[%clk 0:02:58.2]} 11. f3
{[%clk 0:02:55.1]} 11... h6 {[%clk 0:02:51]} 12. Bh4 {[%clk 0:02:54.5]} 12...
Ne6 {[%clk 0:02:51.2]} 13. Rad1 {[%clk 0:02:48.7]} 13... Bd7 {[%clk 0:02:26.8]}
14. Bf2 {[%clk 0:02:28.4]} 14... c5 {[%clk 0:02:21.2]} 15. dxc5 {[%clk
0:02:18.6]} 15... Bxc5 {[%clk 0:02:22.1]} 16. Bf5 {[%clk 0:01:53]} 16... Rc8
{[%clk 0:02:08.8]} 17. Qb3 {[%clk 0:01:46.3]} 17... Bc6 {[%clk 0:01:58.7]} 18.
Nd4 {[%clk 0:01:13.3]} 18... Bxd4 {[%clk 0:01:40.8]} 19. Bxe6 {[%clk 0:01:04.3]}
19... Bxe3 {[%clk 0:01:08.6]} 20. Bxc8 {[%clk 0:00:51.3]} 20... Bxf2+ {[%clk
0:01:08.5]} 21. Rxf2 {[%clk 0:00:51.7]} 21... Qxc8 {[%clk 0:01:09.3]} 22. Ne2
{[%clk 0:00:45.6]} 22... Qd7 {[%clk 0:00:59.8]} 23. Nd4 {[%clk 0:00:43.6]} 23...
Ba4 {[%clk 0:00:59.4]} 24. Qd3 {[%clk 0:00:39.3]} 24... Bxd1 {[%clk 0:00:59.3]}
25. Qxd1 {[%clk 0:00:40.2]} 25... Qd6 {[%clk 0:00:54.1]} 26. Rc2 {[%clk
0:00:33.4]} 26... Qb4 {[%clk 0:00:50.4]} 27. Kf2 {[%clk 0:00:32.1]} 27... Qb6
{[%clk 0:00:39.8]} 28. b3 {[%clk 0:00:31.3]} 28... Nd7 {[%clk 0:00:35.3]} 29. g3
{[%clk 0:00:30.9]} 29... Nc5 {[%clk 0:00:34.5]} 30. Kg2 {[%clk 0:00:30.9]} 30...
Ne6 {[%clk 0:00:28.4]} 31. Nf5 {[%clk 0:00:31.3]} 31... d4 {[%clk 0:00:22.5]}
32. Qd3 {[%clk 0:00:30.6]} 32... Qa5 {[%clk 0:00:17]} 33. Re2 {[%clk 0:00:27.9]}
33... Rd8 {[%clk 0:00:14.9]} 34. Nxh6+ {[%clk 0:00:17.2]} 34... gxh6 {[%clk
0:00:14.1]} 35. Rxe6 {[%clk 0:00:17.4]} 35... Qc3 {[%clk 0:00:05.5]} 36. Qf5
{[%clk 0:00:09.3]} 36... Qd2+ {[%clk 0:00:05.4]} 37. Kh3 {[%clk 0:00:09]} 37...
Qg5 {[%clk 0:00:05.4]} 38. Qxg5+ {[%clk 0:00:08.3]} 38... hxg5 {[%clk
0:00:06.3]} 39. Re2 {[%clk 0:00:08]} 39... d3 {[%clk 0:00:06.5]} 40. Rd2 {[%clk
0:00:08.3]} 40... f5 {[%clk 0:00:06.9]} 41. f4 {[%clk 0:00:08.2]} 41... g4+
{[%clk 0:00:06.2]} 42. Kg2 {[%clk 0:00:08]} 42... Kf7 {[%clk 0:00:06]} 43. Kf2
{[%clk 0:00:08.3]} 43... Ke6 {[%clk 0:00:04.3]} 44. Ke3 {[%clk 0:00:08.7]} 44...
b5 {[%clk 0:00:03.6]} 45. Rxd3 {[%clk 0:00:08.9]} 45... Rh8 {[%clk 0:00:04.2]}
46. Rd2 {[%clk 0:00:08.8]} 46... a5 {[%clk 0:00:04.4]} 47. Kd4 {[%clk
0:00:08.1]} 47... Rd8+ {[%clk 0:00:03.3]} 48. Kc3 {[%clk 0:00:08.4]} 48... Rc8+
{[%clk 0:00:03.6]} 49. Kd3 {[%clk 0:00:06.6]} 49... Rd8+ {[%clk 0:00:03.5]} 50.
Kc2 {[%clk 0:00:06.9]} 50... Rc8+ {[%clk 0:00:03.2]} 51. Kb2 {[%clk 0:00:07.3]}
51... b4 {[%clk 0:00:01.7]} 52. Re2+ {[%clk 0:00:07.7]} 52... Kf6 {[%clk
0:00:02.1]} 53. Re5 {[%clk 0:00:08.6]} 53... Rh8 {[%clk 0:00:02.4]} 54. Re2
{[%clk 0:00:08.1]} 54... Rd8 {[%clk 0:00:02]} 55. a3 {[%clk 0:00:07.6]} 55...
Rc8 {[%clk 0:00:01.9]} 56. axb4 {[%clk 0:00:07]} 56... axb4 {[%clk 0:00:02.8]}
57. Rc2 {[%clk 0:00:06.9]} 57... Rh8 {[%clk 0:00:02.7]} 58. Kc1 {[%clk 0:00:07]}
58... Ke6 {[%clk 0:00:02.8]} 59. Kd2 {[%clk 0:00:07.2]} 59... Rxh2+ {[%clk
0:00:01.1]} 60. Kd3 {[%clk 0:00:08.1]} 60... Rxc2 {[%clk 0:00:01.6]} 61. Kxc2
{[%clk 0:00:09]} 61... Kd5 {[%clk 0:00:02.2]} 62. Kd3 {[%clk 0:00:09.9]} 62...
Kc5 {[%clk 0:00:02.7]} 63. Ke3 {[%clk 0:00:10.4]} 63... Kd5 {[%clk 0:00:03.1]}
64. Kd3 {[%clk 0:00:11.3]} 64... Kc5 {[%clk 0:00:03.1]} 65. Ke3 {[%clk
0:00:12.2]} 65... Kd5 {[%clk 0:00:03.5]} 66. Kd3 {[%clk 0:00:13.1]} 1/2-1/2